BODY,BODY NAME,DATE,TRANSACTION NUMBER, AMOUNT ,SUPPLIER NAME,SUPPLIER ID,EXPENSE AREA,EXPENSE TYPE,EXPENSE CODE
http://statistics.data.gov.uk/id/local-authority/12UE,Huntingdonshire District Council,16/06/2011,83940,2970.00,Elephant & Castle Freehouse & Motel,CR401969,Accommodation For Homeless,Bed & Breakfast Payment,818
http://statistics.data.gov.uk/id/local-authority/12UE,Huntingdonshire District Council,23/06/2011,84341,2808.00,Elephant & Castle Freehouse & Motel,CR401969,Accommodation For Homeless,Bed & Breakfast Payment,818
http://statistics.data.gov.uk/id/local-authority/12UE,Huntingdonshire District Council,30/06/2011,84731,2592.00,Elephant & Castle Freehouse & Motel,CR401969,Accommodation For Homeless,Bed & Breakfast Payment,818
http://statistics.data.gov.uk/id/local-authority/12UE,Huntingdonshire District Council,09/06/2011,83478,2592.00,Elephant & Castle Freehouse & Motel,CR401969,Accommodation For Homeless,Bed & Breakfast Payment,818
http://statistics.data.gov.uk/id/local-authority/12UE,Huntingdonshire District Council,02/06/2011,83215,2322.00,Elephant & Castle Freehouse & Motel,CR401969,Accommodation For Homeless,Bed & Breakfast Payment,818
http://statistics.data.gov.uk/id/local-authority/12UE,Huntingdonshire District Council,30/06/2011,84721,525.00,Mr Ian Axelson T/A The George Hotel,CR135380,Accommodation For Homeless,Bed & Breakfast Payment,818
http://statistics.data.gov.uk/id/local-authority/12UE,Huntingdonshire District Council,23/06/2011,84415,525.00,Mr Ian Axelson T/A The George Hotel,CR135380,Accommodation For Homeless,Bed & Breakfast Payment,818
http://statistics.data.gov.uk/id/local-authority/12UE,Huntingdonshire District Council,30/06/2011,83945,1051.87,Bandvulc Tyres Ltd,CR406810,Bring Sites Recycling,Tyres,630
http://statistics.data.gov.uk/id/local-authority/12UE,Huntingdonshire District Council,23/06/2011,517894,650.00,Post Office  Ltd,CR008902,Bring Sites Recycling,Vehicle Licence,609
http://statistics.data.gov.uk/id/local-authority/12UE,Huntingdonshire District Council,02/06/2011,82391,2295.82,Opus International Consultants,CR479831,Building Control Applications,Consultants Other,711
http://statistics.data.gov.uk/id/local-authority/12UE,Huntingdonshire District Council,30/06/2011,84329,1335.30,Opus International Consultants,CR479831,Building Control Applications,Consultants Other,711
http://statistics.data.gov.uk/id/local-authority/12UE,Huntingdonshire District Council,23/06/2011,84069,985.00,Cnc Building Control,CR482407,Building Control Other,Subcontractors,777
http://statistics.data.gov.uk/id/local-authority/12UE,Huntingdonshire District Council,30/06/2011,517924,1888.80,North Kesteven District Council,CR480804,Building Control Other,Subcontractors,777
http://statistics.data.gov.uk/id/local-authority/12UE,Huntingdonshire District Council,02/06/2011,82391,1056.00,Opus International Consultants,CR479831,Building Control Other,Consultants Other,711
http://statistics.data.gov.uk/id/local-authority/12UE,Huntingdonshire District Council,02/06/2011,82284,780.00,G Ferrara Ltd,CR478949,Bus Shelters,Sitework,359
http://statistics.data.gov.uk/id/local-authority/12UE,Huntingdonshire District Council,02/06/2011,81802,1212.00,G Ferrara Ltd,CR478949,Bus Shelters,Sitework,359
http://statistics.data.gov.uk/id/local-authority/12UE,Huntingdonshire District Council,30/06/2011,83475,1038.00,Beebys Limited,CR415822,Bus Stations,Building Cleaning Internal,440
http://statistics.data.gov.uk/id/local-authority/12UE,Huntingdonshire District Council,23/06/2011,83210,1038.00,Beebys Limited,CR415822,Bus Stations,Building Cleaning Internal,440
http://statistics.data.gov.uk/id/local-authority/12UE,Huntingdonshire District Council,09/06/2011,82716,534.00,L G Digital Ltd,CR482346,Business & Enterprise Support,Advertising/Promoting Services,255
http://statistics.data.gov.uk/id/local-authority/12UE,Huntingdonshire District Council,30/06/2011,84393,3882.04,Cale Briparc Ltd,CR401137,Car Park Management,Car Park Machines,522
http://statistics.data.gov.uk/id/local-authority/12UE,Huntingdonshire District Council,16/06/2011,83241,3708.12,Cale Briparc Ltd,CR401137,Car Park Management,Car Park Machines,522
http://statistics.data.gov.uk/id/local-authority/12UE,Huntingdonshire District Council,02/06/2011,82284,852.00,G Ferrara Ltd,CR478949,Car Park Management,Sitework,359
http://statistics.data.gov.uk/id/local-authority/12UE,Huntingdonshire District Council,30/06/2011,83233,1612.67,Oastlodge Ltd,CR479114,Car Park Management,Rent,410
http://statistics.data.gov.uk/id/local-authority/12UE,Huntingdonshire District Council,30/06/2011,84694,587.58,Swalec,CR407130,Car Park Management,Electricity,420
http://statistics.data.gov.uk/id/local-authority/12UE,Huntingdonshire District Council,30/06/2011,84695,504.52,Swalec,CR407130,Car Park Management,Electricity,420
http://statistics.data.gov.uk/id/local-authority/12UE,Huntingdonshire District Council,16/06/2011,516748,858.50,Cambridgeshire County Council,CR416949,Car Parks Capital,Sitework,359
http://statistics.data.gov.uk/id/local-authority/12UE,Huntingdonshire District Council,23/06/2011,83225,4142.40,Oxford  Archaeology East,CR478885,Car Parks Capital,Sitework,359
http://statistics.data.gov.uk/id/local-authority/12UE,Huntingdonshire District Council,09/06/2011,83167,586.71,Lex Autolease Ltd,CR410751,Chief Executive & C O M T,Vehicle Operating Lease,601
http://statistics.data.gov.uk/id/local-authority/12UE,Huntingdonshire District Council,30/06/2011,83410,7180.50,Sharpe Pritchard,CR480887,Chief Executive & C O M T,Consultants Other,711
http://statistics.data.gov.uk/id/local-authority/12UE,Huntingdonshire District Council,02/06/2011,515782,8281.68,South East Employers,CR416328,Chief Executive & C O M T,Consultants Other,711
http://statistics.data.gov.uk/id/local-authority/12UE,Huntingdonshire District Council,09/06/2011,82471,631.20,British Geological Survey,CR401267,Contaminated Land,Software,206
http://statistics.data.gov.uk/id/local-authority/12UE,Huntingdonshire District Council,02/06/2011,83228,1341.74,Archant Herts & Cambs,CR415764,Council Tax,Advertising - Statutory Notice,257
http://statistics.data.gov.uk/id/local-authority/12UE,Huntingdonshire District Council,16/06/2011,83178,844.60,Rossendales Ltd,CR479503,Council Tax,Bailiffs,703
http://statistics.data.gov.uk/id/local-authority/12UE,Huntingdonshire District Council,30/06/2011,83981,595.38,Rossendales Ltd,CR479503,Council Tax,Bailiffs,703
http://statistics.data.gov.uk/id/local-authority/12UE,Huntingdonshire District Council,16/06/2011,83930,88.41,Shell Uk Ltd,CR028192,Countryside Management,Petrol,614
http://statistics.data.gov.uk/id/local-authority/12UE,Huntingdonshire District Council,23/06/2011,83424,1935.60,Emqc Ltd,CR477882,Customer Service Centres,Benchmarking,707
http://statistics.data.gov.uk/id/local-authority/12UE,Huntingdonshire District Council,23/06/2011,84410,85.62,G4s Cashservices Uk Ltd,CR407133,Customer Service Centres,Cash Collection,702
http://statistics.data.gov.uk/id/local-authority/12UE,Huntingdonshire District Council,02/06/2011,81914,0.65,Virgin Media Business,CR033120,Customer Service Centres,Telephone Charges,240
http://statistics.data.gov.uk/id/local-authority/12UE,Huntingdonshire District Council,30/06/2011,83844,2677.50,White Commercial Surveyors Ltd,CR412242,Customer Service Centres,Rent,410
http://statistics.data.gov.uk/id/local-authority/12UE,Huntingdonshire District Council,02/06/2011,82284,1200.00,G Ferrara Ltd,CR478949,Cycling,Sitework,359
http://statistics.data.gov.uk/id/local-authority/12UE,Huntingdonshire District Council,30/06/2011,84472,3659.02,Drivers  Jonas Deloitte,CR400573,Dc Application Processing,Consultants Other,711
http://statistics.data.gov.uk/id/local-authority/12UE,Huntingdonshire District Council,02/06/2011,82505,1206.58,Kingston Communications,CR417066,Development Team,I T Line Rental,248
http://statistics.data.gov.uk/id/local-authority/12UE,Huntingdonshire District Council,30/06/2011,84107,4862.58,Oce Uk Limited,CR409013,Document Centre,Equipment Maintenance,511
http://statistics.data.gov.uk/id/local-authority/12UE,Huntingdonshire District Council,30/06/2011,84106,3151.70,Oce Uk Limited,CR409013,Document Centre,Equipment Maintenance,511
http://statistics.data.gov.uk/id/local-authority/12UE,Huntingdonshire District Council,30/06/2011,84105,1035.17,Oce Uk Limited,CR409013,Document Centre,Equipment Maintenance,511
http://statistics.data.gov.uk/id/local-authority/12UE,Huntingdonshire District Council,02/06/2011,82382,1035.17,Oce Uk Limited,CR409013,Document Centre,Equipment Maintenance,511
http://statistics.data.gov.uk/id/local-authority/12UE,Huntingdonshire District Council,30/06/2011,84101,1287.83,Royal Mail,CR027083,Document Centre,Postage,231
http://statistics.data.gov.uk/id/local-authority/12UE,Huntingdonshire District Council,09/06/2011,82911,1127.80,Royal Mail,CR027083,Document Centre,Postage,231
http://statistics.data.gov.uk/id/local-authority/12UE,Huntingdonshire District Council,23/06/2011,84097,536.28,Sudbury Print Group Ltd,CR024134,Document Centre,Subcontractors,777
http://statistics.data.gov.uk/id/local-authority/12UE,Huntingdonshire District Council,30/06/2011,84081,771.67,T N T Post Midlands Ltd,CR479965,Document Centre,Postage,231
http://statistics.data.gov.uk/id/local-authority/12UE,Huntingdonshire District Council,23/06/2011,83529,1143.06,T N T Post Midlands Ltd,CR479965,Document Centre,Postage,231
http://statistics.data.gov.uk/id/local-authority/12UE,Huntingdonshire District Council,02/06/2011,82394,196.99,T N T Post Midlands Ltd,CR479965,Document Centre,Postage,231
http://statistics.data.gov.uk/id/local-authority/12UE,Huntingdonshire District Council,16/06/2011,82925,704.21,T N T Post Midlands Ltd,CR479965,Document Centre,Postage,231
http://statistics.data.gov.uk/id/local-authority/12UE,Huntingdonshire District Council,09/06/2011,82326,582.72,T N T Post Midlands Ltd,CR479965,Document Centre,Postage,231
http://statistics.data.gov.uk/id/local-authority/12UE,Huntingdonshire District Council,23/06/2011,84102,1919.76,West Country Paper,CR400581,Document Centre,Subcontractors,777
http://statistics.data.gov.uk/id/local-authority/12UE,Huntingdonshire District Council,16/06/2011,83183,611.26,Xerox Office Supplies,CR481184,Document Centre,Paper,562
http://statistics.data.gov.uk/id/local-authority/12UE,Huntingdonshire District Council,16/06/2011,82866,501.24,A C Commercials,CR000141,Domestic Refuse,Vehicle Maintenance,619
http://statistics.data.gov.uk/id/local-authority/12UE,Huntingdonshire District Council,30/06/2011,83945,4666.31,Bandvulc Tyres Ltd,CR406810,Domestic Refuse,Tyres,630
http://statistics.data.gov.uk/id/local-authority/12UE,Huntingdonshire District Council,02/06/2011,83237,3547.97,Bandvulc Tyres Ltd,CR406810,Domestic Refuse,Tyres,630
http://statistics.data.gov.uk/id/local-authority/12UE,Huntingdonshire District Council,30/06/2011,83820,723.36,Burnt Tree Group,CR480897,Domestic Refuse,Vehicle Hire,607
http://statistics.data.gov.uk/id/local-authority/12UE,Huntingdonshire District Council,30/06/2011,84344,2654.08,Dennis Eagle Ltd,CR000200,Domestic Refuse,Vehicle Maintenance,619
http://statistics.data.gov.uk/id/local-authority/12UE,Huntingdonshire District Council,30/06/2011,83907,1098.27,Dennis Eagle Ltd,CR000200,Domestic Refuse,Vehicle Parts,625
http://statistics.data.gov.uk/id/local-authority/12UE,Huntingdonshire District Council,30/06/2011,84459,464.48,Dennis Eagle Ltd,CR000200,Domestic Refuse,Vehicle Maintenance,619
http://statistics.data.gov.uk/id/local-authority/12UE,Huntingdonshire District Council,02/06/2011,82361,2094.00,Esca Uk,CR482334,Domestic Refuse,Equipment Purchases,500
http://statistics.data.gov.uk/id/local-authority/12UE,Huntingdonshire District Council,02/06/2011,82480,634.20,Garwood Europe Ltd,CR415210,Domestic Refuse,Vehicle Maintenance,619
http://statistics.data.gov.uk/id/local-authority/12UE,Huntingdonshire District Council,30/06/2011,83897,8970.16,Gelpack Excelsior Limited,CR002966,Domestic Refuse,Refuse Sacks,552
http://statistics.data.gov.uk/id/local-authority/12UE,Huntingdonshire District Council,23/06/2011,517894,1950.00,Post Office  Ltd,CR008902,Domestic Refuse,Vehicle Licence,609
http://statistics.data.gov.uk/id/local-authority/12UE,Huntingdonshire District Council,30/06/2011,84002,3887.28,Staffline Group,CR416827,Domestic Refuse,Hired Staff,100
http://statistics.data.gov.uk/id/local-authority/12UE,Huntingdonshire District Council,16/06/2011,83458,3486.18,Staffline Group,CR416827,Domestic Refuse,Hired Staff,100
http://statistics.data.gov.uk/id/local-authority/12UE,Huntingdonshire District Council,09/06/2011,83462,3409.32,Staffline Group,CR416827,Domestic Refuse,Hired Staff,100
http://statistics.data.gov.uk/id/local-authority/12UE,Huntingdonshire District Council,23/06/2011,83924,3332.45,Staffline Group,CR416827,Domestic Refuse,Hired Staff,100
http://statistics.data.gov.uk/id/local-authority/12UE,Huntingdonshire District Council,02/06/2011,82487,3327.20,Staffline Group,CR416827,Domestic Refuse,Hired Staff,100
http://statistics.data.gov.uk/id/local-authority/12UE,Huntingdonshire District Council,23/06/2011,83929,1460.35,Staffline Group,CR416827,Domestic Refuse,Hired Staff,100
http://statistics.data.gov.uk/id/local-authority/12UE,Huntingdonshire District Council,16/06/2011,83465,1383.49,Staffline Group,CR416827,Domestic Refuse,Hired Staff,100
http://statistics.data.gov.uk/id/local-authority/12UE,Huntingdonshire District Council,30/06/2011,84004,1268.24,Staffline Group,CR416827,Domestic Refuse,Hired Staff,100
http://statistics.data.gov.uk/id/local-authority/12UE,Huntingdonshire District Council,09/06/2011,83461,801.55,Staffline Group,CR416827,Domestic Refuse,Hired Staff,100
http://statistics.data.gov.uk/id/local-authority/12UE,Huntingdonshire District Council,02/06/2011,82490,774.17,Staffline Group,CR416827,Domestic Refuse,Hired Staff,100
http://statistics.data.gov.uk/id/local-authority/12UE,Huntingdonshire District Council,23/06/2011,83480,4163.62,Terberg Matec Uk Ltd,CR402183,Domestic Refuse,Vehicle Maintenance,619
http://statistics.data.gov.uk/id/local-authority/12UE,Huntingdonshire District Council,30/06/2011,83993,1249.63,Terberg Matec Uk Ltd,CR402183,Domestic Refuse,Vehicle Maintenance,619
http://statistics.data.gov.uk/id/local-authority/12UE,Huntingdonshire District Council,02/06/2011,82017,1137.44,Terberg Matec Uk Ltd,CR402183,Domestic Refuse,Vehicle Parts,625
http://statistics.data.gov.uk/id/local-authority/12UE,Huntingdonshire District Council,23/06/2011,83440,691.94,Terberg Matec Uk Ltd,CR402183,Domestic Refuse,Vehicle Parts,625
http://statistics.data.gov.uk/id/local-authority/12UE,Huntingdonshire District Council,09/06/2011,82320,653.52,Terberg Matec Uk Ltd,CR402183,Domestic Refuse,Vehicle Maintenance,619
http://statistics.data.gov.uk/id/local-authority/12UE,Huntingdonshire District Council,09/06/2011,83417,1381.97,Ecocleen Services Limited,CR406985,Efh & Depots,Building Cleaning Internal,440
http://statistics.data.gov.uk/id/local-authority/12UE,Huntingdonshire District Council,30/06/2011,83812,608.78,Princebuild Ltd,CR000645,Efh & Depots,Gen Building Mtce - Responsive,303
http://statistics.data.gov.uk/id/local-authority/12UE,Huntingdonshire District Council,16/06/2011,83951,4480.71,Swalec,CR407130,Efh & Depots,Electricity,420
http://statistics.data.gov.uk/id/local-authority/12UE,Huntingdonshire District Council,02/06/2011,79440,3484.80,Ihs (Global)  Limited,CR416521,Eh Health & Safety,Corporate Subscriptions,754
http://statistics.data.gov.uk/id/local-authority/12UE,Huntingdonshire District Council,02/06/2011,83231,1517.46,Royal Mail,CR027083,Elections,Postage,231
http://statistics.data.gov.uk/id/local-authority/12UE,Huntingdonshire District Council,16/06/2011,82913,1322.60,Royal Mail,CR027083,Elections,Postage,231
http://statistics.data.gov.uk/id/local-authority/12UE,Huntingdonshire District Council,30/06/2011,84101,9.52,Royal Mail,CR027083,Elections,Postage,231
http://statistics.data.gov.uk/id/local-authority/12UE,Huntingdonshire District Council,09/06/2011,82911,125.64,Royal Mail,CR027083,Elections,Postage,231
http://statistics.data.gov.uk/id/local-authority/12UE,Huntingdonshire District Council,09/06/2011,83230,1003.86,Royal Mail,CR027083,Elections,Postage,231
http://statistics.data.gov.uk/id/local-authority/12UE,Huntingdonshire District Council,09/06/2011,82908,194.40,Royal Mail,CR027083,Elections,Postage,231
http://statistics.data.gov.uk/id/local-authority/12UE,Huntingdonshire District Council,30/06/2011,84081,70.26,T N T Post Midlands Ltd,CR479965,Elections,Postage,231
http://statistics.data.gov.uk/id/local-authority/12UE,Huntingdonshire District Council,23/06/2011,83529,45.79,T N T Post Midlands Ltd,CR479965,Elections,Postage,231
http://statistics.data.gov.uk/id/local-authority/12UE,Huntingdonshire District Council,23/06/2011,83227,750.00,Victoirepress,CR404724,Elections,Stationery,225
http://statistics.data.gov.uk/id/local-authority/12UE,Huntingdonshire District Council,02/06/2011,82277,960.00,Marney Hall Consultancy Limited,CR480342,Energy Efficiency,Consultants Other,711
http://statistics.data.gov.uk/id/local-authority/12UE,Huntingdonshire District Council,02/06/2011,82278,720.00,Marney Hall Consultancy Limited,CR480342,Energy Efficiency,Consultants Other,711
http://statistics.data.gov.uk/id/local-authority/12UE,Huntingdonshire District Council,30/06/2011,83401,648.00,Printexpress.Co.Uk,CR478393,Energy Efficiency,Advertising/Promoting Services,255
http://statistics.data.gov.uk/id/local-authority/12UE,Huntingdonshire District Council,16/06/2011,82909,540.00,Aligned Assests Ltd,CR482341,Engineering & Arch M Us,Training - Other,136
http://statistics.data.gov.uk/id/local-authority/12UE,Huntingdonshire District Council,09/06/2011,82525,744.00,Institute Of Lighting Professionals,CR477841,Engineering & Arch M Us,Training - Other,136
http://statistics.data.gov.uk/id/local-authority/12UE,Huntingdonshire District Council,16/06/2011,82792,864.00,Mhb Services,CR417269,Environment Equipment Capital,Sitework,359
http://statistics.data.gov.uk/id/local-authority/12UE,Huntingdonshire District Council,23/06/2011,84322,1474.20,Apollo Property Services Group,CR480335,Environmental Improvements,Building Construction,300
http://statistics.data.gov.uk/id/local-authority/12UE,Huntingdonshire District Council,30/06/2011,84078,2946.00,Gas Street Works Ltd,CR479939,Environmental Improvements,Promotions And Exhibitions,743
http://statistics.data.gov.uk/id/local-authority/12UE,Huntingdonshire District Council,30/06/2011,83414,1198.32,Mhb Services,CR417269,Environmental Improvements,Sitework,359
http://statistics.data.gov.uk/id/local-authority/12UE,Huntingdonshire District Council,23/06/2011,84323,2230.75,5th Studio,CR416259,Estates Properties Capital,Consultants Other,711
http://statistics.data.gov.uk/id/local-authority/12UE,Huntingdonshire District Council,30/06/2011,84765,8983.58,Drivers  Jonas Deloitte,CR400573,Estates Properties Capital,Consultants Other,711
http://statistics.data.gov.uk/id/local-authority/12UE,Huntingdonshire District Council,09/06/2011,82828,5048.32,Drivers  Jonas Deloitte,CR400573,Estates Properties Capital,Consultants Other,711
http://statistics.data.gov.uk/id/local-authority/12UE,Huntingdonshire District Council,09/06/2011,83608,4949.36,Drivers  Jonas Deloitte,CR400573,Estates Properties Capital,Consultants Other,711
http://statistics.data.gov.uk/id/local-authority/12UE,Huntingdonshire District Council,02/06/2011,82304,1380.00,Audit Commision,CR000237,External Audit,Audit Fees,701
http://statistics.data.gov.uk/id/local-authority/12UE,Huntingdonshire District Council,02/06/2011,81847,1915.20,Cipfa,CR480451,Financial Services Mus,Software,206
http://statistics.data.gov.uk/id/local-authority/12UE,Huntingdonshire District Council,30/06/2011,83578,939.26,Dell Computer Corporation,CR408320,Financial Services Mus,Other I T Hardware,203
http://statistics.data.gov.uk/id/local-authority/12UE,Huntingdonshire District Council,09/06/2011,82295,648.38,Lyreco Uk Ltd,CR400700,Financial Services Mus,Stationery,225
http://statistics.data.gov.uk/id/local-authority/12UE,Huntingdonshire District Council,30/06/2011,84110,985.81,Days Contract Hire,CR417030,Fleet Management,Vehicle Finance Leases,602
http://statistics.data.gov.uk/id/local-authority/12UE,Huntingdonshire District Council,30/06/2011,84110,98.28,Days Contract Hire,CR417030,Fleet Management,Vehicle Service,621
http://statistics.data.gov.uk/id/local-authority/12UE,Huntingdonshire District Council,02/06/2011,82394,452.64,T N T Post Midlands Ltd,CR479965,Food Safety,Postage,231
http://statistics.data.gov.uk/id/local-authority/12UE,Huntingdonshire District Council,02/06/2011,83187,6946.86,Computershare Vouchers Ltd,CR412205,General Creditors,Deductions Paid To Third Party,26
http://statistics.data.gov.uk/id/local-authority/12UE,Huntingdonshire District Council,16/06/2011,83854,997.27,Ernest Doe & Sons,CR000261,Grounds Maintenance (Combined),Vehicle Parts,625
http://statistics.data.gov.uk/id/local-authority/12UE,Huntingdonshire District Council,16/06/2011,83853,689.47,Ernest Doe & Sons,CR000261,Grounds Maintenance (Combined),Vehicle Parts,625
http://statistics.data.gov.uk/id/local-authority/12UE,Huntingdonshire District Council,02/06/2011,83146,1976.43,Euramka Promotions Ltd,CR001864,Grounds Maintenance (Combined),Diesel,615
http://statistics.data.gov.uk/id/local-authority/12UE,Huntingdonshire District Council,02/06/2011,83146,111.72,Euramka Promotions Ltd,CR001864,Grounds Maintenance (Combined),Petrol,614
http://statistics.data.gov.uk/id/local-authority/12UE,Huntingdonshire District Council,30/06/2011,83784,1321.45,Euramka Promotions Ltd,CR001864,Grounds Maintenance (Combined),Diesel,615
http://statistics.data.gov.uk/id/local-authority/12UE,Huntingdonshire District Council,30/06/2011,83784,72.56,Euramka Promotions Ltd,CR001864,Grounds Maintenance (Combined),Petrol,614
http://statistics.data.gov.uk/id/local-authority/12UE,Huntingdonshire District Council,30/06/2011,83783,1986.00,Global Tree Solutions,CR400957,Grounds Maintenance (Combined),Tree Maintenance,357
http://statistics.data.gov.uk/id/local-authority/12UE,Huntingdonshire District Council,23/06/2011,83444,1010.50,K Irvine Plant Llp,CR480665,Grounds Maintenance (Combined),Equipment Hire,507
http://statistics.data.gov.uk/id/local-authority/12UE,Huntingdonshire District Council,16/06/2011,83930,508.18,Shell Uk Ltd,CR028192,Grounds Maintenance (Combined),Petrol,614
http://statistics.data.gov.uk/id/local-authority/12UE,Huntingdonshire District Council,09/06/2011,83455,1308.56,Staffline Group,CR416827,Grounds Maintenance (Combined),Hired Staff,100
http://statistics.data.gov.uk/id/local-authority/12UE,Huntingdonshire District Council,16/06/2011,83467,1206.65,Staffline Group,CR416827,Grounds Maintenance (Combined),Hired Staff,100
http://statistics.data.gov.uk/id/local-authority/12UE,Huntingdonshire District Council,23/06/2011,83925,966.24,Staffline Group,CR416827,Grounds Maintenance (Combined),Hired Staff,100
http://statistics.data.gov.uk/id/local-authority/12UE,Huntingdonshire District Council,02/06/2011,82489,866.84,Staffline Group,CR416827,Grounds Maintenance (Combined),Hired Staff,100
http://statistics.data.gov.uk/id/local-authority/12UE,Huntingdonshire District Council,01/06/2011,80117,2000.00,Shared Services Architects,CR481087,Head Of Imd,Training - Other,136
http://statistics.data.gov.uk/id/local-authority/12UE,Huntingdonshire District Council,01/06/2011,83235,-2000.00,Shared Services Architects,CR481087,Head Of Imd,Training - Other,136
http://statistics.data.gov.uk/id/local-authority/12UE,Huntingdonshire District Council,30/06/2011,84645,554.95,Biffa Waste Services Ltd,CR416469,Hinchingbrooke Country Park,Waste Disposal,763
http://statistics.data.gov.uk/id/local-authority/12UE,Huntingdonshire District Council,02/06/2011,82874,701.56,King Bros,CR411339,Hinchingbrooke Country Park,Catering Materials,559
http://statistics.data.gov.uk/id/local-authority/12UE,Huntingdonshire District Council,30/06/2011,83888,637.96,King Bros,CR411339,Hinchingbrooke Country Park,Catering Materials,559
http://statistics.data.gov.uk/id/local-authority/12UE,Huntingdonshire District Council,23/06/2011,83949,748.17,Swalec,CR407130,Hinchingbrooke Country Park,Electricity,420
http://statistics.data.gov.uk/id/local-authority/12UE,Huntingdonshire District Council,02/06/2011,83213,2022.66,Luminus Homes,CR401276,Homeless Prevention,Gen Building Mtce - Responsive,303
http://statistics.data.gov.uk/id/local-authority/12UE,Huntingdonshire District Council,02/06/2011,517127,974.14,Bibby Factors Leicester Ltd,CR480417,Housing Management Units,Hired Staff,100
http://statistics.data.gov.uk/id/local-authority/12UE,Huntingdonshire District Council,09/06/2011,517393,974.14,Bibby Factors Leicester Ltd,CR480417,Housing Management Units,Hired Staff,100
http://statistics.data.gov.uk/id/local-authority/12UE,Huntingdonshire District Council,23/06/2011,517878,974.14,Bibby Factors Leicester Ltd,CR480417,Housing Management Units,Hired Staff,100
http://statistics.data.gov.uk/id/local-authority/12UE,Huntingdonshire District Council,30/06/2011,518141,974.14,Bibby Factors Leicester Ltd,CR480417,Housing Management Units,Hired Staff,100
http://statistics.data.gov.uk/id/local-authority/12UE,Huntingdonshire District Council,16/06/2011,517720,645.04,Bibby Factors Leicester Ltd,CR480417,Housing Management Units,Hired Staff,100
http://statistics.data.gov.uk/id/local-authority/12UE,Huntingdonshire District Council,16/06/2011,83962,3060.40,Anglian Water,CR000071,Housing Services Other,Water,432
http://statistics.data.gov.uk/id/local-authority/12UE,Huntingdonshire District Council,23/06/2011,84337,10020.00,Cambridge City Council,CR477360,Housing Surveys,Consultants Other,711
http://statistics.data.gov.uk/id/local-authority/12UE,Huntingdonshire District Council,16/06/2011,83939,4362.60,A & S Fenner,CR000092,Housing Tenant Debtors,Other Payments To 3rd Parties,28
http://statistics.data.gov.uk/id/local-authority/12UE,Huntingdonshire District Council,30/06/2011,518140,3893.64,M Watson Construction Ltd,CR480595,Housing Tenant Debtors,Other Payments To 3rd Parties,28
http://statistics.data.gov.uk/id/local-authority/12UE,Huntingdonshire District Council,30/06/2011,84728,1858.60,Movement 2,CR480659,Housing Tenant Debtors,Other Payments To 3rd Parties,28
http://statistics.data.gov.uk/id/local-authority/12UE,Huntingdonshire District Council,30/06/2011,83613,1192.86,Accomplished,CR477676,Human Resources,Training - Professional,130
http://statistics.data.gov.uk/id/local-authority/12UE,Huntingdonshire District Council,30/06/2011,84144,993.83,Heales Medical Ltd,CR477639,Human Resources,Medical Fees,734
http://statistics.data.gov.uk/id/local-authority/12UE,Huntingdonshire District Council,02/06/2011,82398,1200.00,Safety Media Ltd,CR033676,Human Resources,Software,206
http://statistics.data.gov.uk/id/local-authority/12UE,Huntingdonshire District Council,23/06/2011,84326,1800.00,Tmp Reynell,CR482413,Human Resources,Corporate Subscriptions,754
http://statistics.data.gov.uk/id/local-authority/12UE,Huntingdonshire District Council,30/06/2011,83945,726.80,Bandvulc Tyres Ltd,CR406810,Kerbside Recycling,Tyres,630
http://statistics.data.gov.uk/id/local-authority/12UE,Huntingdonshire District Council,02/06/2011,83237,1778.84,Bandvulc Tyres Ltd,CR406810,Kerbside Recycling,Tyres,630
http://statistics.data.gov.uk/id/local-authority/12UE,Huntingdonshire District Council,30/06/2011,83907,355.88,Dennis Eagle Ltd,CR000200,Kerbside Recycling,Vehicle Parts,625
http://statistics.data.gov.uk/id/local-authority/12UE,Huntingdonshire District Council,16/06/2011,83911,903.71,Dennis Eagle Ltd,CR000200,Kerbside Recycling,Vehicle Parts,625
http://statistics.data.gov.uk/id/local-authority/12UE,Huntingdonshire District Council,30/06/2011,84459,295.04,Dennis Eagle Ltd,CR000200,Kerbside Recycling,Vehicle Maintenance,619
http://statistics.data.gov.uk/id/local-authority/12UE,Huntingdonshire District Council,30/06/2011,83897,11013.60,Gelpack Excelsior Limited,CR002966,Kerbside Recycling,Refuse Sacks,552
http://statistics.data.gov.uk/id/local-authority/12UE,Huntingdonshire District Council,23/06/2011,517894,1950.00,Post Office  Ltd,CR008902,Kerbside Recycling,Vehicle Licence,609
http://statistics.data.gov.uk/id/local-authority/12UE,Huntingdonshire District Council,16/06/2011,83457,2432.09,Staffline Group,CR416827,Kerbside Recycling,Hired Staff,100
http://statistics.data.gov.uk/id/local-authority/12UE,Huntingdonshire District Council,02/06/2011,82491,2256.66,Staffline Group,CR416827,Kerbside Recycling,Hired Staff,100
http://statistics.data.gov.uk/id/local-authority/12UE,Huntingdonshire District Council,30/06/2011,84003,2124.76,Staffline Group,CR416827,Kerbside Recycling,Hired Staff,100
http://statistics.data.gov.uk/id/local-authority/12UE,Huntingdonshire District Council,23/06/2011,83926,1773.28,Staffline Group,CR416827,Kerbside Recycling,Hired Staff,100
http://statistics.data.gov.uk/id/local-authority/12UE,Huntingdonshire District Council,09/06/2011,83463,1290.17,Staffline Group,CR416827,Kerbside Recycling,Hired Staff,100
http://statistics.data.gov.uk/id/local-authority/12UE,Huntingdonshire District Council,02/06/2011,516745,13800.00,Cambridgeshire County Council,CR006678,Legal Services Managment Units,Software,206
http://statistics.data.gov.uk/id/local-authority/12UE,Huntingdonshire District Council,16/06/2011,84130,3000.00,Building Services Design - Bsd,CR409263,Leisure Centres Capital,Consultants Other,711
http://statistics.data.gov.uk/id/local-authority/12UE,Huntingdonshire District Council,16/06/2011,82736,840.00,Building Services Design - Bsd,CR409263,Leisure Centres Capital,Consultants Other,711
http://statistics.data.gov.uk/id/local-authority/12UE,Huntingdonshire District Council,23/06/2011,84327,2153.77,Charles Lawrence Surfaces Plc,CR409026,Leisure Centres Capital,Building Construction,300
http://statistics.data.gov.uk/id/local-authority/12UE,Huntingdonshire District Council,23/06/2011,84469,364434.30,R G Carter Peterborough,CR401511,Leisure Centres Capital,Building Construction,300
http://statistics.data.gov.uk/id/local-authority/12UE,Huntingdonshire District Council,30/06/2011,84300,2910.00,Surfacing Standards Ltd,CR417318,Leisure Centres Capital,Sitework,359
http://statistics.data.gov.uk/id/local-authority/12UE,Huntingdonshire District Council,02/06/2011,82371,2910.00,Surfacing Standards Ltd,CR417318,Leisure Centres Capital,Consultation And Surveys,770
http://statistics.data.gov.uk/id/local-authority/12UE,Huntingdonshire District Council,23/06/2011,82789,900.00,Primesight Advertising Ltd,CR132710,Leisure Centres Overall,Advertising/Promoting Services,255
http://statistics.data.gov.uk/id/local-authority/12UE,Huntingdonshire District Council,16/06/2011,83963,7726.74,Swalec,CR407130,Leisure Centres Overall,Electricity,420
http://statistics.data.gov.uk/id/local-authority/12UE,Huntingdonshire District Council,23/06/2011,83260,500.00,Paxton Lakes Sailing Club,CR406534,Leisure Development,Instructors/Tutors,720
http://statistics.data.gov.uk/id/local-authority/12UE,Huntingdonshire District Council,09/06/2011,82536,500.00,Paxton Lakes Sailing Club,CR406534,Leisure Development,Instructors/Tutors,720
http://statistics.data.gov.uk/id/local-authority/12UE,Huntingdonshire District Council,09/06/2011,83405,753.00,Mo Motors,CR406493,Licences,Vehicle Inspection,618
http://statistics.data.gov.uk/id/local-authority/12UE,Huntingdonshire District Council,23/06/2011,83408,717.00,Mo Motors,CR406493,Licences,Vehicle Inspection,618
http://statistics.data.gov.uk/id/local-authority/12UE,Huntingdonshire District Council,16/06/2011,83407,624.00,Mo Motors,CR406493,Licences,Vehicle Inspection,618
http://statistics.data.gov.uk/id/local-authority/12UE,Huntingdonshire District Council,09/06/2011,83406,570.00,Mo Motors,CR406493,Licences,Vehicle Inspection,618
http://statistics.data.gov.uk/id/local-authority/12UE,Huntingdonshire District Council,09/06/2011,82654,600.96,Mogo Uk,CR410378,Licences,Licence Plates,564
http://statistics.data.gov.uk/id/local-authority/12UE,Huntingdonshire District Council,16/06/2011,83220,540.00,Lloyds Tsb Commercial Finance Ltd,CR410928,Littering,Waste Disposal,763
http://statistics.data.gov.uk/id/local-authority/12UE,Huntingdonshire District Council,16/06/2011,82922,5160.00,Limehouse Software Ltd,CR412010,Local Development Framework,Software,206
http://statistics.data.gov.uk/id/local-authority/12UE,Huntingdonshire District Council,02/06/2011,81914,122.10,Virgin Media Business,CR033120,Member Allowances & Support,I T Line Rental,248
http://statistics.data.gov.uk/id/local-authority/12UE,Huntingdonshire District Council,02/06/2011,81914,8.58,Virgin Media Business,CR033120,Member Allowances & Support,Telephone Charges,240
http://statistics.data.gov.uk/id/local-authority/12UE,Huntingdonshire District Council,09/06/2011,83161,62.40,Huntingdon Timber Supplies,CR415663,Misc Countryside Sites,Materials,550
http://statistics.data.gov.uk/id/local-authority/12UE,Huntingdonshire District Council,30/06/2011,517907,9285.00,Bedford Pilgrims,CR100968,Miscellaneous Grants,Grants (Paid Out),800
http://statistics.data.gov.uk/id/local-authority/12UE,Huntingdonshire District Council,30/06/2011,517909,5865.61,Disability Information Service Huntingdonshir,CR408884,Miscellaneous Grants,Grants (Paid Out),800
http://statistics.data.gov.uk/id/local-authority/12UE,Huntingdonshire District Council,30/06/2011,517904,9285.00,Huntingdonshire  Volunteer Centre,CR410643,Miscellaneous Grants,Grants (Paid Out),800
http://statistics.data.gov.uk/id/local-authority/12UE,Huntingdonshire District Council,30/06/2011,517910,42312.50,Huntingdonshire Citizens Advice Bureau,CR406206,Miscellaneous Grants,Grants (Paid Out),800
http://statistics.data.gov.uk/id/local-authority/12UE,Huntingdonshire District Council,30/06/2011,517906,6607.50,Hunts Shopmobility,CR429218,Miscellaneous Grants,Grants (Paid Out),800
http://statistics.data.gov.uk/id/local-authority/12UE,Huntingdonshire District Council,30/06/2011,517908,6592.50,St Barnabas Community Learning Centre,CR412072,Miscellaneous Grants,Grants (Paid Out),800
http://statistics.data.gov.uk/id/local-authority/12UE,Huntingdonshire District Council,09/06/2011,81912,8235.10,Capax Discovery Ltd,CR480587,Network Services,Software,206
http://statistics.data.gov.uk/id/local-authority/12UE,Huntingdonshire District Council,09/06/2011,82499,2725.20,Daisy Communications Ltd,CR481089,Network Services,I T Line Rental,248
http://statistics.data.gov.uk/id/local-authority/12UE,Huntingdonshire District Council,09/06/2011,83270,4286.40,Eacs Ltd,CR404499,Network Services,Software,206
http://statistics.data.gov.uk/id/local-authority/12UE,Huntingdonshire District Council,09/06/2011,83248,5456.40,Hp Care Pack Sales,CR478055,Network Services,Equipment Maintenance,511
http://statistics.data.gov.uk/id/local-authority/12UE,Huntingdonshire District Council,10/06/2011,517622,560.00,Information Commissioner,CR404972,Network Services,Registration Fee,748
http://statistics.data.gov.uk/id/local-authority/12UE,Huntingdonshire District Council,30/06/2011,83579,4952.40,Northgate Information Solutions Uk Ltd,CR028925,Network Services,Equipment Maintenance,511
http://statistics.data.gov.uk/id/local-authority/12UE,Huntingdonshire District Council,09/06/2011,82833,1063.04,Reed Employment Plc,CR416757,Network Services,Hired Staff,100
http://statistics.data.gov.uk/id/local-authority/12UE,Huntingdonshire District Council,23/06/2011,83426,1056.28,Reed Employment Plc,CR416757,Network Services,Hired Staff,100
http://statistics.data.gov.uk/id/local-authority/12UE,Huntingdonshire District Council,09/06/2011,82507,1029.19,Reed Employment Plc,CR416757,Network Services,Hired Staff,100
http://statistics.data.gov.uk/id/local-authority/12UE,Huntingdonshire District Council,30/06/2011,84077,954.71,Reed Employment Plc,CR416757,Network Services,Hired Staff,100
http://statistics.data.gov.uk/id/local-authority/12UE,Huntingdonshire District Council,16/06/2011,83247,812.52,Reed Employment Plc,CR416757,Network Services,Hired Staff,100
http://statistics.data.gov.uk/id/local-authority/12UE,Huntingdonshire District Council,02/06/2011,81893,636.48,Reed Employment Plc,CR416757,Network Services,Hired Staff,100
http://statistics.data.gov.uk/id/local-authority/12UE,Huntingdonshire District Council,02/06/2011,81914,3082.23,Virgin Media Business,CR033120,Network Services,I T Line Rental,248
http://statistics.data.gov.uk/id/local-authority/12UE,Huntingdonshire District Council,02/06/2011,81914,759.08,Virgin Media Business,CR033120,Network Services,Telephone Charges,240
http://statistics.data.gov.uk/id/local-authority/12UE,Huntingdonshire District Council,02/06/2011,82500,1530.00,Virgin Media Business,CR033120,Network Services,I T Line Rental,248
http://statistics.data.gov.uk/id/local-authority/12UE,Huntingdonshire District Council,09/06/2011,82895,720.00,Dal-Rod Uk Ltd,CR002782,Nightsoil,Subcontractors,777
http://statistics.data.gov.uk/id/local-authority/12UE,Huntingdonshire District Council,09/06/2011,82469,540.00,Campbell Associates,CR407137,Nuisances,Equipment Maintenance,511
http://statistics.data.gov.uk/id/local-authority/12UE,Huntingdonshire District Council,16/06/2011,83568,920471.20,Carillion A M Developments,CR415549,Offices Capital,Building Construction,300
http://statistics.data.gov.uk/id/local-authority/12UE,Huntingdonshire District Council,16/06/2011,83570,-901294.71,Carillion A M Developments,CR415549,Offices Capital,Building Construction,300
http://statistics.data.gov.uk/id/local-authority/12UE,Huntingdonshire District Council,02/06/2011,82780,533.89,Booker Cash And Carry,CR027611,One Leisure Huntingdon,Vending Materials,560
http://statistics.data.gov.uk/id/local-authority/12UE,Huntingdonshire District Council,16/06/2011,82755,523.05,Brenntag Uk Ltd,CR015017,One Leisure Huntingdon,Chemicals,551
http://statistics.data.gov.uk/id/local-authority/12UE,Huntingdonshire District Council,16/06/2011,83869,3502.67,E-On Energy,CR416430,One Leisure Huntingdon,Gas,421
http://statistics.data.gov.uk/id/local-authority/12UE,Huntingdonshire District Council,16/06/2011,83862,650.74,E-On Energy,CR416430,One Leisure Huntingdon,Gas,421
http://statistics.data.gov.uk/id/local-authority/12UE,Huntingdonshire District Council,23/06/2011,84410,102.74,G4s Cashservices Uk Ltd,CR407133,One Leisure Huntingdon,Cash Collection,702
http://statistics.data.gov.uk/id/local-authority/12UE,Huntingdonshire District Council,16/06/2011,84031,816.91,Glaxosmithkline,CR010424,One Leisure Huntingdon,Materials For Resale,570
http://statistics.data.gov.uk/id/local-authority/12UE,Huntingdonshire District Council,23/06/2011,83551,600.00,Marketing Force Limited,CR478596,One Leisure Huntingdon,Advertising/Promoting Services,255
http://statistics.data.gov.uk/id/local-authority/12UE,Huntingdonshire District Council,23/06/2011,84056,586.80,Mcintyre Leisure,CR404059,One Leisure Huntingdon,Equipment Maintenance,511
http://statistics.data.gov.uk/id/local-authority/12UE,Huntingdonshire District Council,23/06/2011,83581,450.00,Primesight Advertising Ltd,CR132710,One Leisure Huntingdon,Advertising/Promoting Services,255
http://statistics.data.gov.uk/id/local-authority/12UE,Huntingdonshire District Council,02/06/2011,82766,1322.64,Sps Pumps & Engineering Ltd,CR401392,One Leisure Huntingdon,Plant & Equipment Maintenance,380
http://statistics.data.gov.uk/id/local-authority/12UE,Huntingdonshire District Council,16/06/2011,83964,4153.70,Swalec,CR407130,One Leisure Huntingdon,Electricity,420
http://statistics.data.gov.uk/id/local-authority/12UE,Huntingdonshire District Council,02/06/2011,81914,76.54,Virgin Media Business,CR033120,One Leisure Huntingdon,Telephone Charges,240
http://statistics.data.gov.uk/id/local-authority/12UE,Huntingdonshire District Council,30/06/2011,83973,174.96,Yell Limited,CR416111,One Leisure Huntingdon,Advertising/Promoting Services,255
http://statistics.data.gov.uk/id/local-authority/12UE,Huntingdonshire District Council,09/06/2011,82759,888.34,Zoggs International Ltd,CR004270,One Leisure Huntingdon,Materials For Resale,570
http://statistics.data.gov.uk/id/local-authority/12UE,Huntingdonshire District Council,09/06/2011,82305,765.00,Zurich Municipal,CR003638,One Leisure Huntingdon,Insurance Excess,797
http://statistics.data.gov.uk/id/local-authority/12UE,Huntingdonshire District Council,30/06/2011,83974,337.80,Bigprinting,CR416383,One Leisure Ramsey,Printing (External),220
http://statistics.data.gov.uk/id/local-authority/12UE,Huntingdonshire District Council,23/06/2011,84071,569.84,Booker Cash And Carry,CR027611,One Leisure Ramsey,Vending Materials,560
http://statistics.data.gov.uk/id/local-authority/12UE,Huntingdonshire District Council,16/06/2011,83571,603.60,Chubb Electronic Security,CR029346,One Leisure Ramsey,Security,450
http://statistics.data.gov.uk/id/local-authority/12UE,Huntingdonshire District Council,09/06/2011,83507,960.95,Ecocleen Services Limited,CR406985,One Leisure Ramsey,Gen Building Mtce - Planned,304
http://statistics.data.gov.uk/id/local-authority/12UE,Huntingdonshire District Council,16/06/2011,83874,950.27,E-On Energy,CR416430,One Leisure Ramsey,Gas,421
http://statistics.data.gov.uk/id/local-authority/12UE,Huntingdonshire District Council,23/06/2011,84410,51.37,G4s Cashservices Uk Ltd,CR407133,One Leisure Ramsey,Cash Collection,702
http://statistics.data.gov.uk/id/local-authority/12UE,Huntingdonshire District Council,23/06/2011,83551,1800.00,Marketing Force Limited,CR478596,One Leisure Ramsey,Advertising/Promoting Services,255
http://statistics.data.gov.uk/id/local-authority/12UE,Huntingdonshire District Council,09/06/2011,82319,489.20,Peter Lockyer Advertising Ltd,CR033030,One Leisure Ramsey,Recruitment - Advertising,120
http://statistics.data.gov.uk/id/local-authority/12UE,Huntingdonshire District Council,30/06/2011,83514,1560.00,R S Air Conditioning Ltd,CR478470,One Leisure Ramsey,Equipment Maintenance,511
http://statistics.data.gov.uk/id/local-authority/12UE,Huntingdonshire District Council,30/06/2011,84784,2119.35,Swalec,CR407130,One Leisure Ramsey,Electricity,420
http://statistics.data.gov.uk/id/local-authority/12UE,Huntingdonshire District Council,30/06/2011,83973,174.96,Yell Limited,CR416111,One Leisure Ramsey,Advertising/Promoting Services,255
http://statistics.data.gov.uk/id/local-authority/12UE,Huntingdonshire District Council,23/06/2011,517760,1656.51,Anglian Water,CR000071,One Leisure Sawtry,Water,432
http://statistics.data.gov.uk/id/local-authority/12UE,Huntingdonshire District Council,30/06/2011,83974,337.80,Bigprinting,CR416383,One Leisure Sawtry,Printing (External),220
http://statistics.data.gov.uk/id/local-authority/12UE,Huntingdonshire District Council,16/06/2011,83863,1863.77,E-On Energy,CR416430,One Leisure Sawtry,Gas,421
http://statistics.data.gov.uk/id/local-authority/12UE,Huntingdonshire District Council,23/06/2011,84410,51.38,G4s Cashservices Uk Ltd,CR407133,One Leisure Sawtry,Cash Collection,702
http://statistics.data.gov.uk/id/local-authority/12UE,Huntingdonshire District Council,16/06/2011,83149,1151.46,Kershaw Contracting Services,CR001026,One Leisure Sawtry,Gen Building Mtce - Responsive,303
http://statistics.data.gov.uk/id/local-authority/12UE,Huntingdonshire District Council,23/06/2011,83567,1010.18,Kershaw Contracting Services,CR001026,One Leisure Sawtry,Gen Building Mtce - Planned,304
http://statistics.data.gov.uk/id/local-authority/12UE,Huntingdonshire District Council,23/06/2011,83948,3693.30,Swalec,CR407130,One Leisure Sawtry,Electricity,420
http://statistics.data.gov.uk/id/local-authority/12UE,Huntingdonshire District Council,23/06/2011,84012,3222.00,Technogym Uk Ltd,CR033037,One Leisure Sawtry,Equipment Maintenance,511
http://statistics.data.gov.uk/id/local-authority/12UE,Huntingdonshire District Council,30/06/2011,83973,174.96,Yell Limited,CR416111,One Leisure Sawtry,Advertising/Promoting Services,255
http://statistics.data.gov.uk/id/local-authority/12UE,Huntingdonshire District Council,02/06/2011,81939,230.40,A G Aylward,CR000219,One Leisure St Ives,Gen Building Mtce - Planned,304
http://statistics.data.gov.uk/id/local-authority/12UE,Huntingdonshire District Council,02/06/2011,81939,337.84,A G Aylward,CR000219,One Leisure St Ives,Gen Building Mtce - Responsive,303
http://statistics.data.gov.uk/id/local-authority/12UE,Huntingdonshire District Council,16/06/2011,84118,874.99,Booker Cash And Carry,CR027611,One Leisure St Ives,Vending Materials,560
http://statistics.data.gov.uk/id/local-authority/12UE,Huntingdonshire District Council,16/06/2011,84119,203.29,Booker Cash And Carry,CR027611,One Leisure St Ives,Bar Provisions,558
http://statistics.data.gov.uk/id/local-authority/12UE,Huntingdonshire District Council,16/06/2011,84119,481.97,Booker Cash And Carry,CR027611,One Leisure St Ives,Confectionery,572
http://statistics.data.gov.uk/id/local-authority/12UE,Huntingdonshire District Council,16/06/2011,84121,463.59,Booker Cash And Carry,CR027611,One Leisure St Ives,Bar Provisions,558
http://statistics.data.gov.uk/id/local-authority/12UE,Huntingdonshire District Council,16/06/2011,84121,36.84,Booker Cash And Carry,CR027611,One Leisure St Ives,Catering Materials,559
http://statistics.data.gov.uk/id/local-authority/12UE,Huntingdonshire District Council,16/06/2011,84121,63.41,Booker Cash And Carry,CR027611,One Leisure St Ives,Cleaning Materials,443
http://statistics.data.gov.uk/id/local-authority/12UE,Huntingdonshire District Council,16/06/2011,84114,508.01,Booker Cash And Carry,CR027611,One Leisure St Ives,Bar Provisions,558
http://statistics.data.gov.uk/id/local-authority/12UE,Huntingdonshire District Council,16/06/2011,84114,14.45,Booker Cash And Carry,CR027611,One Leisure St Ives,Catering Materials,559
http://statistics.data.gov.uk/id/local-authority/12UE,Huntingdonshire District Council,09/06/2011,83537,4146.48,Ecocleen Services Limited,CR406985,One Leisure St Ives,Building Cleaning Internal,440
http://statistics.data.gov.uk/id/local-authority/12UE,Huntingdonshire District Council,09/06/2011,83538,751.82,Ecocleen Services Limited,CR406985,One Leisure St Ives,Building Cleaning Internal,440
http://statistics.data.gov.uk/id/local-authority/12UE,Huntingdonshire District Council,16/06/2011,83872,2582.03,E-On Energy,CR416430,One Leisure St Ives,Gas,421
http://statistics.data.gov.uk/id/local-authority/12UE,Huntingdonshire District Council,16/06/2011,83628,714.42,Fleet Line Markers Ltd,CR406897,One Leisure St Ives,Grounds Mtce Contractors,351
http://statistics.data.gov.uk/id/local-authority/12UE,Huntingdonshire District Council,16/06/2011,83552,2784.00,Franklins Group,CR478928,One Leisure St Ives,Badges And Certificates,571
http://statistics.data.gov.uk/id/local-authority/12UE,Huntingdonshire District Council,23/06/2011,84410,119.87,G4s Cashservices Uk Ltd,CR407133,One Leisure St Ives,Cash Collection,702
http://statistics.data.gov.uk/id/local-authority/12UE,Huntingdonshire District Council,23/06/2011,83543,720.00,Genesis  Lifts Ltd,CR478241,One Leisure St Ives,Training - Operational,131
http://statistics.data.gov.uk/id/local-authority/12UE,Huntingdonshire District Council,16/06/2011,84125,829.56,Heineken Uk Ltd,CR032678,One Leisure St Ives,Bar Provisions,558
http://statistics.data.gov.uk/id/local-authority/12UE,Huntingdonshire District Council,02/06/2011,81956,1500.00,Labosport,CR480698,One Leisure St Ives,Consultants Other,711
http://statistics.data.gov.uk/id/local-authority/12UE,Huntingdonshire District Council,23/06/2011,83551,600.00,Marketing Force Limited,CR478596,One Leisure St Ives,Advertising/Promoting Services,255
http://statistics.data.gov.uk/id/local-authority/12UE,Huntingdonshire District Council,16/06/2011,83557,1050.00,Roger Wilson Electronics,CR028041,One Leisure St Ives,Materials,550
http://statistics.data.gov.uk/id/local-authority/12UE,Huntingdonshire District Council,02/06/2011,83255,529.74,Roger Wilson Electronics,CR028041,One Leisure St Ives,Gen Building Mtce - Responsive,303
http://statistics.data.gov.uk/id/local-authority/12UE,Huntingdonshire District Council,02/06/2011,83259,517.20,Sky Business,CR033259,One Leisure St Ives,Entertainments Inc Cable Tv,744
http://statistics.data.gov.uk/id/local-authority/12UE,Huntingdonshire District Council,16/06/2011,83952,7954.38,Swalec,CR407130,One Leisure St Ives,Electricity,420
http://statistics.data.gov.uk/id/local-authority/12UE,Huntingdonshire District Council,16/06/2011,83950,1657.76,Swalec,CR407130,One Leisure St Ives,Electricity,420
http://statistics.data.gov.uk/id/local-authority/12UE,Huntingdonshire District Council,09/06/2011,83632,4218.00,Technogym Uk Ltd,CR033037,One Leisure St Ives,Equipment Purchases,500
http://statistics.data.gov.uk/id/local-authority/12UE,Huntingdonshire District Council,09/06/2011,83603,761.52,Thurlow Nunn Standen Ltd,CR001534,One Leisure St Ives,Vehicle Maintenance,619
http://statistics.data.gov.uk/id/local-authority/12UE,Huntingdonshire District Council,02/06/2011,81914,68.40,Virgin Media Business,CR033120,One Leisure St Ives,Telephone Charges,240
http://statistics.data.gov.uk/id/local-authority/12UE,Huntingdonshire District Council,16/06/2011,83627,720.00,Vitax Ltd,CR482337,One Leisure St Ives,Equipment Purchases,500
http://statistics.data.gov.uk/id/local-authority/12UE,Huntingdonshire District Council,30/06/2011,83973,174.96,Yell Limited,CR416111,One Leisure St Ives,Advertising/Promoting Services,255
http://statistics.data.gov.uk/id/local-authority/12UE,Huntingdonshire District Council,09/06/2011,83416,3719.53,Anglian Water,CR000071,One Leisure St Neots,Sewerage,433
http://statistics.data.gov.uk/id/local-authority/12UE,Huntingdonshire District Council,02/06/2011,83142,788.29,Anglian Water,CR000071,One Leisure St Neots,Water,432
http://statistics.data.gov.uk/id/local-authority/12UE,Huntingdonshire District Council,23/06/2011,84351,727.62,Anglian Water,CR000071,One Leisure St Neots,Water,432
http://statistics.data.gov.uk/id/local-authority/12UE,Huntingdonshire District Council,30/06/2011,84875,3060.00,Broxap Ltd,CR415958,One Leisure St Neots,Equipment Purchases,500
http://statistics.data.gov.uk/id/local-authority/12UE,Huntingdonshire District Council,30/06/2011,84906,718.80,Coulson & Sons Ltd,CR479347,One Leisure St Neots,Plant & Equipment Maintenance,380
http://statistics.data.gov.uk/id/local-authority/12UE,Huntingdonshire District Council,16/06/2011,83871,2198.72,E-On Energy,CR416430,One Leisure St Neots,Gas,421
http://statistics.data.gov.uk/id/local-authority/12UE,Huntingdonshire District Council,23/06/2011,84410,171.24,G4s Cashservices Uk Ltd,CR407133,One Leisure St Neots,Cash Collection,702
http://statistics.data.gov.uk/id/local-authority/12UE,Huntingdonshire District Council,03/06/2011,83411,572.11,Glaxosmithkline,CR010424,One Leisure St Neots,Vending Materials,560
http://statistics.data.gov.uk/id/local-authority/12UE,Huntingdonshire District Council,30/06/2011,84872,1015.25,Inflatable Testing & Repairing Services Ltd,CR410226,One Leisure St Neots,Equipment Maintenance,511
http://statistics.data.gov.uk/id/local-authority/12UE,Huntingdonshire District Council,23/06/2011,82694,1190.40,Inspired Spa Solutions Ltd,CR487278,One Leisure St Neots,Materials,550
http://statistics.data.gov.uk/id/local-authority/12UE,Huntingdonshire District Council,30/06/2011,84914,586.15,Longsands Store,CR410895,One Leisure St Neots,Materials,550
http://statistics.data.gov.uk/id/local-authority/12UE,Huntingdonshire District Council,09/06/2011,82319,163.07,Peter Lockyer Advertising Ltd,CR033030,One Leisure St Neots,Recruitment - Advertising,120
http://statistics.data.gov.uk/id/local-authority/12UE,Huntingdonshire District Council,23/06/2011,83581,450.00,Primesight Advertising Ltd,CR132710,One Leisure St Neots,Advertising/Promoting Services,255
http://statistics.data.gov.uk/id/local-authority/12UE,Huntingdonshire District Council,23/06/2011,82696,1093.46,Snackline Direct Ltd,CR478090,One Leisure St Neots,Vending Materials,560
http://statistics.data.gov.uk/id/local-authority/12UE,Huntingdonshire District Council,30/06/2011,83791,780.59,Snackline Direct Ltd,CR478090,One Leisure St Neots,Vending Materials,560
http://statistics.data.gov.uk/id/local-authority/12UE,Huntingdonshire District Council,16/06/2011,83792,514.70,Snackline Direct Ltd,CR478090,One Leisure St Neots,Bar Provisions,558
http://statistics.data.gov.uk/id/local-authority/12UE,Huntingdonshire District Council,16/06/2011,83792,228.37,Snackline Direct Ltd,CR478090,One Leisure St Neots,Confectionery,572
http://statistics.data.gov.uk/id/local-authority/12UE,Huntingdonshire District Council,23/06/2011,82685,1529.13,Stateside Skates Ltd,CR477642,One Leisure St Neots,Sports Equipment,524
http://statistics.data.gov.uk/id/local-authority/12UE,Huntingdonshire District Council,30/06/2011,84874,4218.00,Technogym Uk Ltd,CR033037,One Leisure St Neots,Equipment Purchases,500
http://statistics.data.gov.uk/id/local-authority/12UE,Huntingdonshire District Council,30/06/2011,83973,174.96,Yell Limited,CR416111,One Leisure St Neots,Advertising/Promoting Services,255
http://statistics.data.gov.uk/id/local-authority/12UE,Huntingdonshire District Council,23/06/2011,84301,579.61,Zoggs International Ltd,CR004270,One Leisure St Neots,Materials For Resale,570
http://statistics.data.gov.uk/id/local-authority/12UE,Huntingdonshire District Council,30/06/2011,84704,872.41,Dennis Eagle Ltd,CR000200,Operations Mgt Units,Training - Professional,130
http://statistics.data.gov.uk/id/local-authority/12UE,Huntingdonshire District Council,30/06/2011,84409,531.54,Dennis Eagle Ltd,CR000200,Operations Mgt Units,Vehicle Maintenance,619
http://statistics.data.gov.uk/id/local-authority/12UE,Huntingdonshire District Council,30/06/2011,83817,655.20,Flora Tec Ltd,CR028191,Operations Mgt Units,Equipment Cleaning,512
http://statistics.data.gov.uk/id/local-authority/12UE,Huntingdonshire District Council,09/06/2011,82972,2067.86,M & N Vehicle Services,CR480661,Operations Mgt Units,Vehicle Maintenance,619
http://statistics.data.gov.uk/id/local-authority/12UE,Huntingdonshire District Council,16/06/2011,82973,3672.40,Marshall Motor Group,CR009641,Operations Mgt Units,Vehicle Maintenance,619
http://statistics.data.gov.uk/id/local-authority/12UE,Huntingdonshire District Council,30/06/2011,84846,1125.60,Mis Fuel Monitoring Ltd,CR478577,Operations Mgt Units,Equipment Maintenance,511
http://statistics.data.gov.uk/id/local-authority/12UE,Huntingdonshire District Council,16/06/2011,83930,2.40,Shell Uk Ltd,CR028192,Operations Mgt Units,Petrol,614
http://statistics.data.gov.uk/id/local-authority/12UE,Huntingdonshire District Council,09/06/2011,83446,941.92,Siemens Financial Services Ltd,CR032410,Operations Mgt Units,Equipment Finance Leases,502
http://statistics.data.gov.uk/id/local-authority/12UE,Huntingdonshire District Council,23/06/2011,83479,573.47,Somers Total Kare,CR408287,Operations Mgt Units,Equipment Maintenance,511
http://statistics.data.gov.uk/id/local-authority/12UE,Huntingdonshire District Council,30/06/2011,83805,264.00,Clements Play Management Ltd,CR478419,Parks & Open Spaces,Equipment Maintenance,511
http://statistics.data.gov.uk/id/local-authority/12UE,Huntingdonshire District Council,30/06/2011,83805,5040.00,Clements Play Management Ltd,CR478419,Parks & Open Spaces,Sitework,359
http://statistics.data.gov.uk/id/local-authority/12UE,Huntingdonshire District Council,09/06/2011,82908,305.64,Royal Mail,CR027083,Parks & Open Spaces,Postage,231
http://statistics.data.gov.uk/id/local-authority/12UE,Huntingdonshire District Council,16/06/2011,83159,708.00,Soft Surfaces,CR415861,Parks & Open Spaces,Playground Equipment,360
http://statistics.data.gov.uk/id/local-authority/12UE,Huntingdonshire District Council,09/06/2011,83396,1981.69,Ecocleen Services Limited,CR406985,Pathfinder House Site,Building Cleaning Internal,440
http://statistics.data.gov.uk/id/local-authority/12UE,Huntingdonshire District Council,09/06/2011,83398,624.00,Ecocleen Services Limited,CR406985,Pathfinder House Site,Building Cleaning Internal,440
http://statistics.data.gov.uk/id/local-authority/12UE,Huntingdonshire District Council,02/06/2011,82276,518.40,Edf Energy Customer Field Services,CR477611,Pathfinder House Site,Electricity,420
http://statistics.data.gov.uk/id/local-authority/12UE,Huntingdonshire District Council,09/06/2011,82668,960.00,Kone Lifts Ltd,CR000483,Pathfinder House Site,Gen Building Mtce - Responsive,303
http://statistics.data.gov.uk/id/local-authority/12UE,Huntingdonshire District Council,30/06/2011,83619,749.76,Maskearaid Ind Supplies,CR033423,Pathfinder House Site,Cleaning Materials,443
http://statistics.data.gov.uk/id/local-authority/12UE,Huntingdonshire District Council,16/06/2011,83957,9974.62,Swalec,CR407130,Pathfinder House Site,Electricity,420
http://statistics.data.gov.uk/id/local-authority/12UE,Huntingdonshire District Council,30/06/2011,84629,681.16,Swalec,CR407130,Pathfinder House Site,Gas,421
http://statistics.data.gov.uk/id/local-authority/12UE,Huntingdonshire District Council,02/06/2011,81851,1087.20,B. S. Graves Electrical Ltd,CR000363,Pavillions,Gen Building Mtce - Responsive,303
http://statistics.data.gov.uk/id/local-authority/12UE,Huntingdonshire District Council,30/06/2011,83469,820.61,B. S. Graves Electrical Ltd,CR000363,Pavillions,Gen Building Mtce - Responsive,303
http://statistics.data.gov.uk/id/local-authority/12UE,Huntingdonshire District Council,23/06/2011,84433,5860.90,Swalec,CR407130,Pavillions,Electricity,420
http://statistics.data.gov.uk/id/local-authority/12UE,Huntingdonshire District Council,23/06/2011,84434,1439.43,Swalec,CR407130,Pavillions,Electricity,420
http://statistics.data.gov.uk/id/local-authority/12UE,Huntingdonshire District Council,09/06/2011,83161,711.84,Huntingdon Timber Supplies,CR415663,Paxton Pits,Materials,550
http://statistics.data.gov.uk/id/local-authority/12UE,Huntingdonshire District Council,16/06/2011,83930,37.70,Shell Uk Ltd,CR028192,Paxton Pits,Petrol,614
http://statistics.data.gov.uk/id/local-authority/12UE,Huntingdonshire District Council,09/06/2011,82961,18215.87,Cambridgeshire County Council,CR006678,Pensions,Pension Early Retirements,151
http://statistics.data.gov.uk/id/local-authority/12UE,Huntingdonshire District Council,09/06/2011,516506,237.00,The Institute Of Payroll Professionals,CR405571,People Performance&Partner Mu,Training - Professional,130
http://statistics.data.gov.uk/id/local-authority/12UE,Huntingdonshire District Council,09/06/2011,516506,456.00,The Institute Of Payroll Professionals,CR405571,People Performance&Partner Mu,Training - Other,136
http://statistics.data.gov.uk/id/local-authority/12UE,Huntingdonshire District Council,09/06/2011,82665,954.00,Trevor Roberts Associates,CR028712,Planning M U'S,Training - Professional,130
http://statistics.data.gov.uk/id/local-authority/12UE,Huntingdonshire District Council,23/06/2011,84094,1374.00,Saltream  Ltd,CR411219,Property Development And Mgt,Gen Building Mtce - Planned,304
http://statistics.data.gov.uk/id/local-authority/12UE,Huntingdonshire District Council,09/06/2011,82309,1116.44,Saltream  Ltd,CR411219,Property Development And Mgt,Gen Building Mtce - Planned,304
http://statistics.data.gov.uk/id/local-authority/12UE,Huntingdonshire District Council,30/06/2011,84681,581.43,Swalec,CR407130,Property Development And Mgt,Electricity,420
http://statistics.data.gov.uk/id/local-authority/12UE,Huntingdonshire District Council,09/06/2011,83612,3803.95,Information Publications Ltd,CR415915,Public Accountability,Artwork And Design,222
http://statistics.data.gov.uk/id/local-authority/12UE,Huntingdonshire District Council,23/06/2011,83186,5857.90,Royal Mail,CR027083,Public Accountability,Postage,231
http://statistics.data.gov.uk/id/local-authority/12UE,Huntingdonshire District Council,16/06/2011,83610,627.55,Transcriptions Direct Ltd,CR417157,Public Accountability,Translation Services,766
http://statistics.data.gov.uk/id/local-authority/12UE,Huntingdonshire District Council,16/06/2011,83473,318.00,Warners Midlands Plc,CR416025,Public Accountability,Delivery Charges,232
http://statistics.data.gov.uk/id/local-authority/12UE,Huntingdonshire District Council,16/06/2011,83473,6267.56,Warners Midlands Plc,CR416025,Public Accountability,Printing (External),220
http://statistics.data.gov.uk/id/local-authority/12UE,Huntingdonshire District Council,09/06/2011,83474,909.36,B. S. Graves Electrical Ltd,CR000363,Public Conveniences,Gen Building Mtce - Responsive,303
http://statistics.data.gov.uk/id/local-authority/12UE,Huntingdonshire District Council,09/06/2011,83395,658.10,Ecocleen Services Limited,CR406985,Public Conveniences,Gen Building Mtce - Responsive,303
http://statistics.data.gov.uk/id/local-authority/12UE,Huntingdonshire District Council,29/06/2011,84692,530.46,Swalec,CR407130,Public Conveniences,Electricity,420
http://statistics.data.gov.uk/id/local-authority/12UE,Huntingdonshire District Council,29/06/2011,84785,-530.46,Swalec,CR407130,Public Conveniences,Electricity,420
http://statistics.data.gov.uk/id/local-authority/12UE,Huntingdonshire District Council,02/06/2011,81902,4666.28,Intecpublicsector,CR478150,Revenue Services Mus,Software,206
http://statistics.data.gov.uk/id/local-authority/12UE,Huntingdonshire District Council,09/06/2011,82904,504.00,Irrv Services Limited,CR008937,Revenue Services Mus,Training - Other,136
http://statistics.data.gov.uk/id/local-authority/12UE,Huntingdonshire District Council,30/06/2011,84299,5751.94,Lex Autolease Ltd,CR410751,Revenue Services Mus,Vehicle Operating Lease,601
http://statistics.data.gov.uk/id/local-authority/12UE,Huntingdonshire District Council,02/06/2011,81886,830.31,Royal Mail,CR027083,Revenue Services Mus,Postage,231
http://statistics.data.gov.uk/id/local-authority/12UE,Huntingdonshire District Council,09/06/2011,82298,1290.25,Sarfo Solicitors,CR415973,Revenue Services Mus,Legal Fees And Consultancy,729
http://statistics.data.gov.uk/id/local-authority/12UE,Huntingdonshire District Council,30/06/2011,84081,2670.35,T N T Post Midlands Ltd,CR479965,Revenue Services Mus,Postage,231
http://statistics.data.gov.uk/id/local-authority/12UE,Huntingdonshire District Council,23/06/2011,83529,686.95,T N T Post Midlands Ltd,CR479965,Revenue Services Mus,Postage,231
http://statistics.data.gov.uk/id/local-authority/12UE,Huntingdonshire District Council,02/06/2011,82394,1224.29,T N T Post Midlands Ltd,CR479965,Revenue Services Mus,Postage,231
http://statistics.data.gov.uk/id/local-authority/12UE,Huntingdonshire District Council,16/06/2011,82925,285.77,T N T Post Midlands Ltd,CR479965,Revenue Services Mus,Postage,231
http://statistics.data.gov.uk/id/local-authority/12UE,Huntingdonshire District Council,09/06/2011,82326,185.80,T N T Post Midlands Ltd,CR479965,Revenue Services Mus,Postage,231
http://statistics.data.gov.uk/id/local-authority/12UE,Huntingdonshire District Council,16/06/2011,83264,1560.00,Edrm At Work,CR482294,Software Capital,Consultants Other,711
http://statistics.data.gov.uk/id/local-authority/12UE,Huntingdonshire District Council,30/06/2011,83600,3350.00,Edrm Systems Ltd,CR416278,Software Capital,Hired Staff,100
http://statistics.data.gov.uk/id/local-authority/12UE,Huntingdonshire District Council,15/06/2011,450879,-1073.95,Equanet,CR415752,Software Capital,P C'S And Accessories,201
http://statistics.data.gov.uk/id/local-authority/12UE,Huntingdonshire District Council,30/06/2011,83576,2520.00,Khipu Networks Ltd,CR482348,Software Capital,Consultants Other,711
http://statistics.data.gov.uk/id/local-authority/12UE,Huntingdonshire District Council,30/06/2011,83576,4027.54,Khipu Networks Ltd,CR482348,Software Capital,Equipment Maintenance,511
http://statistics.data.gov.uk/id/local-authority/12UE,Huntingdonshire District Council,30/06/2011,83576,16255.48,Khipu Networks Ltd,CR482348,Software Capital,Other I T Hardware,203
http://statistics.data.gov.uk/id/local-authority/12UE,Huntingdonshire District Council,30/06/2011,83580,1782.00,Taran Microsystems,CR482352,Software Capital,Network Hardware,205
http://statistics.data.gov.uk/id/local-authority/12UE,Huntingdonshire District Council,30/06/2011,83945,60.98,Bandvulc Tyres Ltd,CR406810,Street Cleaning,Tyres,630
http://statistics.data.gov.uk/id/local-authority/12UE,Huntingdonshire District Council,02/06/2011,83237,32.10,Bandvulc Tyres Ltd,CR406810,Street Cleaning,Tyres,630
http://statistics.data.gov.uk/id/local-authority/12UE,Huntingdonshire District Council,30/06/2011,84626,2592.00,Ians Tyre And Exhaust Centre,CR405836,Street Cleaning,Tyres,630
http://statistics.data.gov.uk/id/local-authority/12UE,Huntingdonshire District Council,09/06/2011,83156,1011.60,Johnston Engineering Ltd,CR029831,Street Cleaning,Vehicle Maintenance,619
http://statistics.data.gov.uk/id/local-authority/12UE,Huntingdonshire District Council,23/06/2011,83884,538.01,Johnston Engineering Ltd,CR029831,Street Cleaning,Vehicle Parts,625
http://statistics.data.gov.uk/id/local-authority/12UE,Huntingdonshire District Council,23/06/2011,84379,3240.00,Meteora Ltd,CR417248,Street Cleaning,Materials,550
http://statistics.data.gov.uk/id/local-authority/12UE,Huntingdonshire District Council,24/06/2011,84293,3945.60,Nomix Enviro,CR002353,Street Cleaning,Chemicals,551
http://statistics.data.gov.uk/id/local-authority/12UE,Huntingdonshire District Council,24/06/2011,84294,-3945.60,Nomix Enviro,CR002353,Street Cleaning,Chemicals,551
http://statistics.data.gov.uk/id/local-authority/12UE,Huntingdonshire District Council,23/06/2011,517894,630.00,Post Office  Ltd,CR008902,Street Cleaning,Vehicle Licence,609
http://statistics.data.gov.uk/id/local-authority/12UE,Huntingdonshire District Council,23/06/2011,83928,1383.48,Staffline Group,CR416827,Street Cleaning,Hired Staff,100
http://statistics.data.gov.uk/id/local-authority/12UE,Huntingdonshire District Council,30/06/2011,84008,1295.68,Staffline Group,CR416827,Street Cleaning,Hired Staff,100
http://statistics.data.gov.uk/id/local-authority/12UE,Huntingdonshire District Council,02/06/2011,82486,1295.66,Staffline Group,CR416827,Street Cleaning,Hired Staff,100
http://statistics.data.gov.uk/id/local-authority/12UE,Huntingdonshire District Council,09/06/2011,83460,1295.64,Staffline Group,CR416827,Street Cleaning,Hired Staff,100
http://statistics.data.gov.uk/id/local-authority/12UE,Huntingdonshire District Council,23/06/2011,83927,1136.44,Staffline Group,CR416827,Street Cleaning,Hired Staff,100
http://statistics.data.gov.uk/id/local-authority/12UE,Huntingdonshire District Council,16/06/2011,83459,1059.58,Staffline Group,CR416827,Street Cleaning,Hired Staff,100
http://statistics.data.gov.uk/id/local-authority/12UE,Huntingdonshire District Council,16/06/2011,83456,1054.09,Staffline Group,CR416827,Street Cleaning,Hired Staff,100
http://statistics.data.gov.uk/id/local-authority/12UE,Huntingdonshire District Council,09/06/2011,83464,977.22,Staffline Group,CR416827,Street Cleaning,Hired Staff,100
http://statistics.data.gov.uk/id/local-authority/12UE,Huntingdonshire District Council,02/06/2011,82488,971.75,Staffline Group,CR416827,Street Cleaning,Hired Staff,100
http://statistics.data.gov.uk/id/local-authority/12UE,Huntingdonshire District Council,30/06/2011,84005,894.89,Staffline Group,CR416827,Street Cleaning,Hired Staff,100
http://statistics.data.gov.uk/id/local-authority/12UE,Huntingdonshire District Council,02/06/2011,82358,5398.80,Keep Britain Tidy,CR479974,Street Cleaning Policy & Mngmt,Corporate Subscriptions,754
http://statistics.data.gov.uk/id/local-authority/12UE,Huntingdonshire District Council,23/06/2011,84405,3122.16,J Breheny Contractors Ltd,CR000314,Street Naming,Signs Erecting & Removal,361
http://statistics.data.gov.uk/id/local-authority/12UE,Huntingdonshire District Council,16/06/2011,84153,9000.00,Huntingdon Town Centre Initiative,CR415389,Town Centre Management,Grants (Paid Out),800
http://statistics.data.gov.uk/id/local-authority/12UE,Huntingdonshire District Council,16/06/2011,84151,9000.00,St Ives Town Initiative,CR415390,Town Centre Management,Grants (Paid Out),800
http://statistics.data.gov.uk/id/local-authority/12UE,Huntingdonshire District Council,16/06/2011,84152,9000.00,St Neots Town Centre Initiative,CR403542,Town Centre Management,Grants (Paid Out),800
http://statistics.data.gov.uk/id/local-authority/12UE,Huntingdonshire District Council,02/06/2011,82360,15274.70,Cambridgeshire County Council,CR006678,Trade Waste,Waste Disposal,763
http://statistics.data.gov.uk/id/local-authority/12UE,Huntingdonshire District Council,30/06/2011,83829,4214.00,Cambridgeshire County Council,CR006678,Trade Waste,Waste Disposal,763
http://statistics.data.gov.uk/id/local-authority/12UE,Huntingdonshire District Council,02/06/2011,81800,1200.00,G Ferrara Ltd,CR478949,Transportation Capital,Sitework,359
http://statistics.data.gov.uk/id/local-authority/12UE,Huntingdonshire District Council,30/06/2011,83559,4384.38,Jba Consulting,CR480798,Watercourse Capital,Consultants Other,711
http://statistics.data.gov.uk/id/local-authority/12UE,Huntingdonshire District Council,09/06/2011,82280,626.40,Jba Consulting,CR480798,Watercourse Capital,Consultants Other,711
